fUSD/lending_fUSD_20250306
["ID","MTS","AMOUNT","RATE_DAILY","PERIOD"]
[355526921,1741237848175,-500.0,0.00011498,2]
[355526923,1741237848186,-1146.05,0.00011498,2]
[355526924,1741237848196,-2745.07,0.00011498,2]
[355526926,1741237848206,-500.0,0.00011498,2]
[355526927,1741237848217,-552.78,0.00011498,2]
[355526929,1741237848228,-500.0,0.00011498,2]
[355526931,1741237848238,-964.93,0.00011498,2]
[355526932,1741237848251,-519.31,0.00011498,2]
[355526934,1741237848261,-500.0,0.00011498,2]
[355526935,1741237848271,-1263.21,0.00011498,2]
[355526937,1741237848282,-912.71,0.00011498,2]
[355526939,1741237848293,-2171.45,0.00011498,2]
[355526940,1741237848304,-812.92,0.00011498,2]
[355526942,1741237848313,-583.18,0.00011498,2]
[355526944,1741237848323,-500.0,0.00011499,2]
[355526945,1741237848332,-152.08054297,0.00011499,2]
[355526947,1741237848342,-500.0,0.00011499,2]
[355526949,1741237848351,-500.0,0.00011499,2]
[355526950,1741237848360,-397.81638622,0.00011499,2]
[355526952,1741237848370,-2599.86,0.00011499,2]
[355526953,1741237848380,-564.97756034,0.00011499,2]
[355526955,1741237848390,-500.0,0.00011499,2]
[355526957,1741237848400,-1202.35,0.00011499,2]
[355526958,1741237848410,-3559.06558715,0.00011499,2]
[355526960,1741237848424,-294.26441285,0.00011499,2]
[355526962,1741237848434,-608.27,0.00011499,2]
[355526963,1741237848443,-1094.43,0.00011499,2]
[355526965,1741237848453,-848.68,0.00011499,2]
[355526967,1741237848462,-1191.59,0.00011499,2]
[355526968,1741237848472,-500.0,0.00011499,2]
[355526970,1741237848481,-901.11,0.00011499,2]
[355526972,1741237848491,-500.0,0.00011499,2]
[355526973,1741237848501,-778.29,0.00011499,2]
[355526975,1741237848511,-500.0,0.00011499,2]
[355526977,1741237848520,-748.81,0.00011499,2]
[355526978,1741237848530,-1021.92,0.00011499,2]
[355526980,1741237848540,-1055.14,0.00011499,2]
[355526981,1741237848549,-722.46,0.00011499,2]
[355526983,1741237848559,-1346.99,0.00011499,2]
[355526985,1741237848569,-1535.86,0.00011499,2]
[355526986,1741237848578,-9844.21,0.00011499,2]
[355526988,1741237848588,-997.26,0.00011499,2]
[355526989,1741237848597,-2213.0457369,0.00011499,2]
[355526991,1741237848609,-1805.35,0.00011499,2]
[355526993,1741237848620,-13502.64,0.00011499,2]
[355526994,1741237848630,-500.0,0.00011499,2]
[355526996,1741237848640,-1671.36,0.00011499,2]
[355526998,1741237848649,-500.0,0.00011499,2]
[355526999,1741237848660,-1074.23,0.00011499,2]
[355527001,1741237848669,-2653.43,0.00011499,2]
[355527002,1741237848679,-1539.0,0.000115,2]
[355527004,1741237848691,-253827.18301873,0.000115,2]
[355529149,1741237886052,355.84,8.848e-05,2]
[355529150,1741237989546,700.0,0.0001018,2]
[355529151,1741238064890,500.0,0.0001018,2]
[355529152,1741238219863,-2000.0,0.00012,14]
[355529156,1741238764960,500.0,0.0001018,2]
[355529158,1741238880574,386.34,8.468e-05,2]
[355529191,1741239031447,-250.0,0.00010395,2]
[355529192,1741239031457,-164.07,0.00010419,2]
[355529193,1741239031466,-148.85208829,0.0001049,2]
[355529194,1741239031478,-151.14791171,0.0001049,2]
[355529195,1741239031487,-10344.94797622,0.00010491,2]
[355529196,1741239031511,-1834.05419453,0.00010491,2]
[355529197,1741239031582,-4633.28054186,0.00010491,2]
[355529198,1741239031594,-4521.19088233,0.00010491,2]
[355529199,1741239031605,-1604.68127046,0.00010491,2]
[355529742,1741239037555,-961.8451346,0.00010491,2]
[355529744,1741239037565,-1000.0,0.0001054,2]
[355529746,1741239037575,-187.12,0.00010573,2]
[355529748,1741239037585,-6862.84202147,0.00010573,2]
[355529750,1741239037594,-1418.11,0.00010673,2]
[355529752,1741239037604,-150.0,0.00010683,2]
[355529754,1741239037614,-720.18,0.00010693,2]
[355529756,1741239037624,-173.74,0.00010721,2]
[355529758,1741239037634,-386.34,0.00010731,2]
[355529760,1741239037644,-4619.43098536,0.00011,2]
[355529762,1741239037653,-1486.76802096,0.00011061,2]
[355529769,1741239037719,-3132.6629644,0.00011061,2]
[355529771,1741239037728,-2358.9914356,0.00011095,2]
[355529959,1741239039458,-2260.43954976,0.00011095,2]
[355529961,1741239039468,-433.55023486,0.00011112,2]
[355529963,1741239039478,-123598.62755009,0.00011138,2]
[355529965,1741239039487,-1236.0,0.000112,2]
[355529967,1741239039497,-750.75873,0.0001139,2]
[355529969,1741239039507,-559.57724131,0.00011396,2]
[355529971,1741239039516,-559.57724124,0.00011396,2]
[355529973,1741239039526,-559.57724124,0.00011397,2]
[355529975,1741239039536,-604.5072538,0.00011397,2]
[355529977,1741239039546,-559.57724124,0.00011397,2]
[355529979,1741239039556,-559.57724124,0.00011398,2]
[355529981,1741239039566,-2081.2408,0.00011398,2]
[355529983,1741239039577,-559.57724124,0.00011398,2]
[355529985,1741239039587,-559.57724124,0.00011399,2]
[355529987,1741239039597,-1000.0,0.00011399,2]
[355529989,1741239039607,-506.96139554,0.00011399,2]
[355529991,1741239039617,-500.0,0.00011399,2]
[355529993,1741239039626,-810.96,0.00011399,2]
[355529995,1741239039636,-500.0,0.00011399,2]
[355529997,1741239039646,-501.7364669,0.00011399,2]
[355529999,1741239039656,-500.0,0.00011399,2]
[355530001,1741239039665,-748.45,0.00011399,2]
[355530003,1741239039674,-500.0,0.00011399,2]
[355530005,1741239039684,-500.0,0.00011399,2]
[355530007,1741239039694,-500.0,0.00011399,2]
[355530009,1741239039703,-183.40387084,0.00011399,2]
[355530011,1741239039712,-559.57724124,0.00011399,2]
[355530012,1741239039722,-559.57724124,0.000114,2]
[355530013,1741239039732,-416.30558625,0.000114,3]
[355530014,1741239039742,-153.83236153,0.000114,2]
[355530015,1741239039751,-151976.58301053,0.000114,2]
[355530016,1741239039761,-202092.3185581,0.000114,2]
[355530017,1741239039774,-5837.0,0.000114,2]
[355530018,1741239039786,-2101.90480967,0.000114,2]
[355530027,1741239039866,-86185.8034019,0.000114,2]
[355530037,1741239039945,-1476.29675264,0.000114,2]
[355530040,1741239039966,-2090.40897658,0.000114,2]
[355530042,1741239039978,-265.89124726,0.000114,2]
[355530044,1741239039993,-48643.73692137,0.000114,2]
[355530047,1741239040006,-362.27742645,0.000114,2]
[355530050,1741239040033,-372.50946649,0.000114,2]
[355530053,1741239040046,-20149.55898614,0.000114,2]
[355530056,1741239040058,-1728.77262585,0.000114,2]
[355530058,1741239040072,-493.98587737,0.000114,2]
[355530064,1741239040127,-119.96201802,0.000114,2]
[355530067,1741239040139,-7407.14046937,0.000114,2]
[355530069,1741239040151,-3834.70002434,0.000114,2]
[355530071,1741239040163,-276.04353848,0.000114,2]
[355530073,1741239040175,-1447.16673114,0.000114,2]
[355530419,1741239043499,-7513.49999951,0.000114,2]
[355530436,1741239043647,-10473.69002335,0.000114,2]
[355530438,1741239043658,-457.46955249,0.000114,2]
[355530441,1741239043683,-1284.97498166,0.000114,2]
[355530444,1741239043694,-254.39513532,0.000114,2]
[355530446,1741239043705,-2137.81251286,0.000114,2]
[355530448,1741239043716,-9857.04850842,0.000114,2]
[355530450,1741239043725,-559.57724124,0.000114,2]
[355530452,1741239043735,-187.12,0.00011419,2]
[355530454,1741239043744,-550.0,0.00011434,2]
[355530456,1741239043754,-550.0,0.00011434,2]
[355530458,1741239043765,-500.96003993,0.00011473,2]
[355530460,1741239043775,-180.59947467,0.00011473,2]
[355530462,1741239043784,-152.40514787,0.00011473,2]
[355530464,1741239043794,-939.228,0.00011473,2]
[355530466,1741239043803,-255.36691368,0.00011488,2]
[355530468,1741239043812,-255.36691368,0.0001149,2]
[355530470,1741239043822,-255.36691368,0.0001149,2]
[355530471,1741239043831,-1273.336,0.00011496,2]
[355530472,1741239043840,-909.442,0.00011496,2]
[355530473,1741239043849,-542.298,0.00011496,2]
[355530474,1741239043858,-1430.447,0.00011496,2]
[355530475,1741239043867,-4051.933,0.00011496,2]
[355530476,1741239043876,-150.0,0.00011496,2]
[355530477,1741239043885,-3930.0,0.00011496,2]
[355530478,1741239043894,-1014.652,0.00011496,2]
[355530479,1741239043903,-569.78,0.00011496,2]
[355530480,1741239043913,-500.0,0.00011496,2]
[355530481,1741239043922,-767.81,0.00011496,2]
[355530482,1741239043931,-500.0,0.00011496,2]
[355530483,1741239043940,-995.46,0.00011496,2]
[355530484,1741239043950,-1231.35,0.00011496,2]
[355530485,1741239043959,-500.0,0.00011496,2]
[355530486,1741239043967,-950.67,0.00011496,2]
[355530487,1741239043977,-642.14,0.00011496,2]
[355530488,1741239043990,-1632.12,0.00011496,2]
[355530489,1741239044000,-500.0,0.00011496,2]
[355530490,1741239044009,-1494.06,0.00011496,2]
[355530492,1741239044018,-650.53,0.00011496,2]
[355530494,1741239044030,-978.02,0.00011496,2]
[355530496,1741239044039,-500.0,0.00011496,2]
[355530497,1741239044050,-500.0,0.00011496,2]
[355530498,1741239044060,-1082.49,0.00011496,2]
[355530499,1741239044070,-837.16,0.00011496,2]
[355530500,1741239044079,-513.64,0.00011496,2]
[355530501,1741239044089,-1622.06,0.00011496,2]
[355530502,1741239044098,-942.25,0.00011496,2]
[355530503,1741239044108,-619.38,0.00011496,2]
[355530504,1741239044117,-148.49702065,0.00011496,2]
[355530541,1741239045383,-351.50297935,0.00011496,2]
[355530543,1741239045393,-500.0,0.00011496,2]
[355530545,1741239045402,-552.13,0.00011496,2]
[355530547,1741239045411,-585.27,0.00011496,2]
[355530549,1741239045421,-500.0,0.00011496,2]
[355530551,1741239045430,-503.39,0.00011496,2]
[355530553,1741239045439,-3999.64,0.00011496,2]
[355530555,1741239045448,-500.0,0.00011496,2]
[355530557,1741239045458,-1288.78,0.00011496,2]
[355530559,1741239045467,-500.0,0.00011496,2]
[355530561,1741239045476,-500.0,0.00011497,2]
[355530563,1741239045485,-540.06,0.00011497,2]
[355530565,1741239045495,-500.0,0.00011497,2]
[355530567,1741239045504,-500.0,0.00011497,2]
[355530569,1741239045515,-500.0,0.00011497,2]
[355530571,1741239045525,-500.0,0.00011497,2]
[355530573,1741239045534,-500.0,0.00011497,2]
[355530575,1741239045543,-523.3,0.00011497,2]
[355530577,1741239045552,-500.0,0.00011497,2]
[355530579,1741239045561,-639.65,0.00011497,2]
[355530580,1741239045570,-500.0,0.00011497,2]
[355530582,1741239045579,-500.0,0.00011497,2]
[355530585,1741239045590,-560.86,0.00011497,2]
[355530587,1741239045600,-500.0,0.00011497,2]
[355530588,1741239045609,-698.71,0.00011497,2]
[355530591,1741239045618,-500.0,0.00011497,2]
[355530593,1741239045628,-500.0,0.00011497,2]
[355530595,1741239045637,-500.0,0.00011497,2]
[355530596,1741239045646,-500.0,0.00011497,2]
[355530598,1741239045655,-500.0,0.00011497,2]
[355530601,1741239045665,-500.0,0.00011497,2]
[355530603,1741239045674,-500.0,0.00011497,2]
[355530605,1741239045683,-500.0,0.00011497,2]
[355530607,1741239045693,-500.0,0.00011497,2]
[355530608,1741239045702,-500.0,0.00011497,2]
[355530611,1741239045712,-500.0,0.00011497,2]
[355530613,1741239045721,-547.52,0.00011497,2]
[355530615,1741239045731,-500.0,0.00011497,2]
[355530616,1741239045740,-500.0,0.00011497,2]
[355530618,1741239045749,-500.0,0.00011497,2]
[355530620,1741239045759,-500.0,0.00011497,2]
[355530622,1741239045768,-500.0,0.00011497,2]
[355530624,1741239045777,-511.95302367,0.00011497,2]
[355530626,1741239045787,-500.0,0.00011497,2]
[355530628,1741239045796,-500.0,0.00011497,2]
[355530630,1741239045805,-500.0,0.00011497,2]
[355530632,1741239045815,-500.0,0.00011497,2]
[355530634,1741239045824,-500.0,0.00011497,2]
[355530636,1741239045834,-500.0,0.00011497,2]
[355530639,1741239045844,-500.0,0.00011497,2]
[355530640,1741239045853,-500.0,0.00011497,2]
[355530643,1741239045862,-500.0,0.00011497,2]
[355530645,1741239045872,-500.0,0.00011497,2]
[355530647,1741239045882,-798.61,0.00011497,2]
[355530649,1741239045891,-500.0,0.00011497,2]
[355530651,1741239045900,-500.0,0.00011497,2]
[355530652,1741239045909,-500.0,0.00011497,2]
[355530655,1741239045919,-500.0,0.00011497,2]
[355530656,1741239045928,-500.0,0.00011497,2]
[355530659,1741239045938,-500.0,0.00011497,2]
[355530661,1741239045948,-500.0,0.00011497,2]
[355530663,1741239045957,-500.0,0.00011497,2]
[355530665,1741239045967,-1703.73,0.00011497,2]
[355530667,1741239045976,-500.0,0.00011497,2]
[355530669,1741239045987,-999.041843,0.00011497,2]
[355530671,1741239045997,-500.0,0.00011497,2]
[355530673,1741239046008,-1687.05,0.00011497,2]
[355530675,1741239046017,-6780.9,0.00011497,2]
[355530676,1741239046027,-1524.812007,0.00011497,2]
[355530679,1741239046037,-500.0,0.00011497,2]
[355530681,1741239046046,-500.0,0.00011497,2]
[355530683,1741239046055,-165.05182,0.00011497,2]
[355530685,1741239046066,-1183.23,0.00011497,2]
[355530687,1741239046076,-531.45,0.00011497,2]
[355530689,1741239046085,-160.018307,0.00011497,2]
[355530691,1741239046097,-527.05,0.00011497,2]
[355530693,1741239046105,-690.96,0.00011497,2]
[355530695,1741239046115,-916.49,0.00011497,2]
[355530697,1741239046124,-1134.37,0.00011497,2]
[355530699,1741239046133,-661.11,0.00011497,2]
[355530701,1741239046142,-2474.2,0.00011497,2]
[355530703,1741239046152,-999.56,0.00011497,2]
[355530705,1741239046161,-500.0,0.00011497,2]
[355530707,1741239046171,-500.0,0.00011497,2]
[355530709,1741239046180,-500.0,0.00011497,2]
[355530711,1741239046189,-500.0,0.00011497,2]
[355530712,1741239046198,-697.58,0.00011497,2]
[355530714,1741239046207,-500.0,0.00011497,2]
[355530715,1741239046216,-862.59,0.00011497,2]
[355530716,1741239046226,-1258.46,0.00011497,2]
[355530717,1741239046235,-500.0,0.00011497,2]
[355530718,1741239046244,-500.0,0.00011497,2]
[355530719,1741239046253,-500.0,0.00011497,2]
[355530721,1741239046264,-328.47147035,0.00011497,2]
[355530723,1741239046273,-500.0,0.00011497,2]
[355530725,1741239046282,-787.24,0.00011497,2]
[355530727,1741239046291,-500.0,0.00011497,2]
[355530729,1741239046301,-1348.26,0.00011497,2]
[355530731,1741239046310,-607.15,0.00011497,2]
[355530733,1741239046320,-985.54,0.00011497,2]
[355530735,1741239046329,-3214.2,0.00011497,2]
[355530737,1741239046339,-500.0,0.00011497,2]
[355530738,1741239046349,-746.45,0.00011497,2]
[355530740,1741239046358,-6150.23,0.00011497,2]
[355530742,1741239046368,-849.72,0.00011497,2]
[355530744,1741239046377,-785.64,0.00011497,2]
[355530746,1741239046386,-690.08,0.00011497,2]
[355530748,1741239046395,-261.81,0.00011497,2]
[355530750,1741239046404,-500.0,0.00011497,2]
[355530752,1741239046414,-500.0,0.00011497,2]
[355530754,1741239046424,-735.71,0.00011497,2]
[355530756,1741239046433,-500.0,0.00011497,2]
[355530758,1741239046442,-642.31,0.00011497,2]
[355530759,1741239046451,-500.0,0.00011497,2]
[355530761,1741239046460,-113413.62763851,0.00011498,2]
[355530765,1741239046483,-250.43824783,0.00011498,2]
[355530768,1741239046501,-608.83533071,0.00011498,2]
[355531800,1741239144451,500.0,0.0001018,2]
[355531801,1741239367047,500.0,0.0001018,2]
[355531802,1741239597966,-309.43585,0.00010324,2]
[355531803,1741239928158,200.0,0.00010221,2]
[355531804,1741240005820,161.09,0.00010204,2]
[355531805,1741240105821,421.99,8.256e-05,2]
[355531808,1741240177680,1247.2,0.00010155,2]
[355531813,1741240237814,-210.13080368,0.00010273,2]
[355531814,1741240237824,-52.0796445,0.00010273,2]
[355531828,1741240241190,-346.34202001,0.00010273,2]
[355531829,1741240241205,-439.80299676,0.00010273,2]
[355531830,1741240241274,-161.77533873,0.00010273,2]
[355531831,1741240241284,-184.45966125,0.000103,2]
[355531837,1741240242903,-11.82033875,0.000103,2]
[355531838,1741240242913,-506.71,0.00010302,2]
[355531839,1741240242922,-1000.0,0.00010357,2]
[355531840,1741240242933,-1159.68,0.00010375,2]
[355531841,1741240242942,-300.0,0.00010376,2]
[355531842,1741240242952,-17221.33,0.00010377,2]
[355531843,1741240242961,-1000.0,0.00010404,2]
[355531844,1741240242970,-164.23,0.00010469,2]
[355531845,1741240242982,-421.99,0.0001052,2]
[355531846,1741240242991,-150.0,0.00010548,2]
[355531848,1741240243001,-164.23,0.00010589,2]
[355531850,1741240243010,-1000.0,0.0001059,2]
[355531851,1741240243019,-164.23,0.00010708,2]
[355531852,1741240243029,-164.23,0.00010828,2]
[355531853,1741240243038,-2500.0,0.00010912,2]
[355531854,1741240243048,-2500.0,0.00010912,2]
[355531855,1741240243057,-164.23,0.00010947,2]
[355531856,1741240243067,-150.0,0.00010986,2]
[355531858,1741240243077,-550.0,0.00011,2]
[355531860,1741240243086,-164.23,0.00011067,2]
[355531862,1741240243095,-550.0,0.00011095,2]
[355531864,1741240243104,-150.0,0.00011155,2]
[355531866,1741240243113,-1000.0,0.0001117,2]
[355531868,1741240243123,-500.0,0.00011178,2]
[355531870,1741240243132,-433.55023486,0.00011181,2]
[355531872,1741240243142,-164.23,0.00011187,2]
[355531874,1741240243151,-1353.98,0.000112,2]
[355531876,1741240243160,-150.99,0.00011281,2]
[355531878,1741240243169,-530.21,0.00011281,2]
[355531880,1741240243177,-3620.4,0.00011281,2]
[355531882,1741240243186,-499.99,0.00011281,2]
[355531884,1741240243196,-4399.81,0.00011281,2]
[355531886,1741240243205,-299.99,0.00011281,2]
[355531888,1741240243214,-415.47,0.00011281,2]
[355531890,1741240243224,-889.2269,0.00011299,2]
[355531892,1741240243233,-150.0,0.000113,2]
[355531894,1741240243242,-150.0,0.000113,2]
[355531896,1741240243251,-164.23,0.00011306,2]
[355531898,1741240243260,-150.0,0.0001133,2]
[355531900,1741240243269,-684.24742,0.0001138,2]
[355531902,1741240243278,-171.32065869,0.00011395,2]
[355531904,1741240243287,-873.69,0.00011398,2]
[355531906,1741240243298,-500.0,0.00011399,2]
[355531908,1741240243307,-500.0,0.00011399,2]
[355531910,1741240243317,-500.0,0.00011399,2]
[355531912,1741240243326,-524.25238402,0.00011399,2]
[355531914,1741240243335,-503.38134371,0.00011399,2]
[355531916,1741240243344,-500.0,0.00011399,2]
[355531918,1741240243354,-533.58235997,0.00011399,2]
[355531920,1741240243363,-500.0,0.00011399,2]
[355531922,1741240243374,-500.0,0.00011399,2]
[355531924,1741240243383,-500.0,0.00011399,2]
[355531926,1741240243394,-500.0,0.00011399,2]
[355531928,1741240243406,-348.19,0.00011399,2]
[355531930,1741240243415,-500.0,0.00011399,2]
[355531932,1741240243424,-500.0,0.00011399,2]
[355531933,1741240243434,-511.03315795,0.00011399,2]
[355531935,1741240243445,-517.31667613,0.00011399,2]
[355531937,1741240243454,-528.26484414,0.00011399,2]
[355531939,1741240243464,-500.0,0.00011399,2]
[355531941,1741240243475,-500.0,0.00011399,2]
[355531943,1741240243484,-500.0,0.00011399,2]
[355531946,1741240243494,-500.0,0.00011399,2]
[355531948,1741240243504,-520.29,0.00011399,2]
[355531949,1741240243514,-521.0,0.00011399,2]
[355531951,1741240243523,-500.05,0.00011399,2]
[355531953,1741240243533,-517.2815231,0.00011399,2]
[355531955,1741240243543,-568.9,0.00011399,2]
[355531957,1741240243553,-500.0,0.00011399,2]
[355531959,1741240243564,-500.0,0.00011399,2]
[355531961,1741240243573,-500.0,0.00011399,2]
[355531963,1741240243583,-556.42,0.00011399,2]
[355531965,1741240243592,-512.43089727,0.00011399,2]
[355531967,1741240243601,-500.0,0.00011399,2]
[355531969,1741240243610,-500.0,0.00011399,2]
[355531971,1741240243619,-500.0,0.00011399,2]
[355531973,1741240243628,-500.0,0.00011399,2]
[355531975,1741240243637,-616.54724656,0.00011399,2]
[355531977,1741240243646,-500.0,0.00011399,2]
[355531979,1741240243655,-500.0,0.00011399,2]
[355531981,1741240243664,-500.0,0.00011399,2]
[355531983,1741240243674,-500.0,0.00011399,2]
[355531985,1741240243682,-500.0,0.00011399,2]
[355531987,1741240243691,-500.0,0.00011399,2]
[355531995,1741240243913,-500.0,0.00011399,2]
[355531996,1741240243924,-500.0,0.00011399,2]
[355531997,1741240243933,-500.0,0.00011399,2]
[355531998,1741240243942,-500.0,0.00011399,2]
[355532000,1741240243952,-500.0,0.00011399,2]
[355532002,1741240243961,-550.8,0.00011399,2]
[355532004,1741240243970,-500.0,0.00011399,2]
[355532006,1741240243980,-500.0,0.00011399,2]
[355532008,1741240243990,-500.0,0.00011399,2]
[355532010,1741240243999,-620.69425599,0.00011399,2]
[355532012,1741240244008,-500.0,0.00011399,2]
[355532014,1741240244018,-582.07,0.00011399,2]
[355532016,1741240244027,-500.0,0.00011399,2]
[355532018,1741240244037,-507.31721852,0.00011399,2]
[355532020,1741240244047,-500.0,0.00011399,2]
[355532022,1741240244056,-500.0,0.00011399,2]
[355532024,1741240244066,-500.0,0.00011399,2]
[355532026,1741240244075,-330.75047404,0.00011399,2]
[355532028,1741240244085,-500.0,0.00011399,2]
[355532030,1741240244094,-500.0,0.00011399,2]
[355532032,1741240244103,-634.67,0.00011399,2]
[355532034,1741240244113,-500.0,0.00011399,2]
[355532036,1741240244122,-500.0,0.00011399,2]
[355532038,1741240244131,-500.0,0.00011399,2]
[355532040,1741240244140,-500.0,0.00011399,2]
[355532042,1741240244150,-500.0,0.00011399,2]
[355532044,1741240244159,-500.0,0.00011399,2]
[355532046,1741240244168,-500.0,0.00011399,2]
[355532048,1741240244177,-500.0,0.00011399,2]
[355532050,1741240244186,-500.0,0.00011399,2]
[355532052,1741240244196,-500.0,0.00011399,2]
[355532054,1741240244205,-500.0,0.00011399,2]
[355532056,1741240244214,-500.0,0.00011399,2]
[355532058,1741240244224,-516.95702602,0.00011399,2]
[355532060,1741240244233,-508.18956348,0.00011399,2]
[355532062,1741240244242,-500.0,0.00011399,2]
[355532064,1741240244251,-500.0,0.00011399,2]
[355532066,1741240244260,-500.0,0.00011399,2]
[355532068,1741240244270,-500.0,0.00011399,2]
[355532070,1741240244279,-553.33,0.00011399,2]
[355532072,1741240244288,-500.0,0.00011399,2]
[355532074,1741240244297,-565.19208574,0.00011399,2]
[355532075,1741240244307,-500.0,0.00011399,2]
[355532077,1741240244316,-509.98037037,0.00011399,2]
[355532079,1741240244326,-500.0,0.00011399,2]
[355532082,1741240244335,-580.33,0.00011399,2]
[355532083,1741240244345,-500.0,0.00011399,2]
[355532086,1741240244354,-500.0,0.00011399,2]
[355532088,1741240244363,-500.0,0.00011399,2]
[355532089,1741240244373,-500.0,0.00011399,2]
[355532092,1741240244382,-500.0,0.00011399,2]
[355532094,1741240244394,-1076.57,0.00011399,2]
[355532095,1741240244403,-557.19,0.00011399,2]
[355532098,1741240244413,-500.0,0.00011399,2]
[355532099,1741240244422,-500.0,0.00011399,2]
[355532102,1741240244431,-500.0,0.00011399,2]
[355532104,1741240244442,-615.42,0.00011399,2]
[355532105,1741240244453,-607.08222227,0.00011399,2]
[355532107,1741240244462,-509.75,0.00011399,2]
[355532109,1741240244471,-500.0,0.00011399,2]
[355532111,1741240244480,-500.0,0.00011399,2]
[355532113,1741240244489,-500.0,0.00011399,2]
[355532115,1741240244498,-500.0,0.00011399,2]
[355532117,1741240244507,-500.0,0.00011399,2]
[355532119,1741240244516,-500.0,0.00011399,2]
[355532121,1741240244525,-500.0,0.00011399,2]
[355532123,1741240244534,-500.0,0.00011399,2]
[355532125,1741240244544,-500.0,0.00011399,2]
[355532127,1741240244553,-509.53944129,0.00011399,2]
[355532129,1741240244563,-500.0,0.00011399,2]
[355532131,1741240244572,-500.0,0.00011399,2]
[355532133,1741240244581,-515.5790464,0.00011399,2]
[355532135,1741240244591,-749.01,0.00011399,2]
[355532137,1741240244600,-453.51204196,0.00011399,2]
[355532139,1741240244609,-500.0,0.00011399,2]
[355532141,1741240244619,-500.0,0.00011399,2]
[355532143,1741240244628,-500.0,0.00011399,2]
[355532145,1741240244637,-500.0,0.00011399,2]
[355532147,1741240244647,-500.0,0.00011399,2]
[355532149,1741240244657,-500.0,0.00011399,2]
[355532151,1741240244666,-500.0,0.00011399,2]
[355532153,1741240244675,-500.0,0.00011399,2]
[355532155,1741240244684,-500.0,0.00011399,2]
[355532157,1741240244693,-500.0,0.00011399,2]
[355532159,1741240244702,-500.0,0.00011399,2]
[355532161,1741240244711,-500.0,0.00011399,2]
[355532163,1741240244719,-500.0,0.00011399,2]
[355532165,1741240244728,-500.0,0.00011399,2]
[355532167,1741240244737,-500.0,0.00011399,2]
[355532169,1741240244746,-500.0,0.00011399,2]
[355532171,1741240244758,-610.63720009,0.00011399,2]
[355532173,1741240244767,-527.19,0.00011399,2]
[355532175,1741240244777,-500.0,0.00011399,2]
[355532177,1741240244786,-500.0,0.00011399,2]
[355532179,1741240244795,-500.0,0.00011399,2]
[355532181,1741240244806,-500.0,0.00011399,2]
[355532183,1741240244815,-500.0,0.00011399,2]
[355532185,1741240244824,-500.0,0.00011399,2]
[355532187,1741240244833,-512.53634231,0.00011399,2]
[355532189,1741240244842,-500.0,0.00011399,2]
[355532191,1741240244851,-500.0,0.00011399,2]
[355532193,1741240244860,-500.0,0.00011399,2]
[355532195,1741240244870,-500.0,0.00011399,2]
[355532197,1741240244879,-500.0,0.00011399,2]
[355532199,1741240244888,-500.0,0.00011399,2]
[355532201,1741240244898,-500.0,0.00011399,2]
[355532203,1741240244907,-500.0,0.00011399,2]
[355532205,1741240244916,-500.0,0.00011399,2]